[Event "Titled Tuesday Blitz March 15 Late 2022"]
[White "Awoki, Daniel Teidi"]
[Black "Levitskiy, Andrey"]
[WhiteFideId "2100827"]
[BlackFideId "14132885"]
[WhiteElo "2023"]
[BlackElo "2301"]
[Result "1-0"]
[Round "08"]
[TimeControl "180+1"]
[Date "2022.03.16"]
[WhiteClock "0:00:50"]
[BlackClock "0:00:01"]

1. c4 {[%clk 0:02:59]}  Nf6 {[%clk 0:02:50]} 2. g3 {[%clk 0:03:00]}  c6 {[%clk 0:02:50]} 3. Bg2 {[%clk 0:03:00]}  d5 {[%clk 0:02:50]} 4. b3 {[%clk 0:03:00]}  Bf5 {[%clk 0:02:50]} 5. Bb2 {[%clk 0:02:59]}  e6 {[%clk 0:02:50]} 6. Nf3 {[%clk 0:02:59]}  Be7 {[%clk 0:02:51]} 7. O-O {[%clk 0:02:59]}  O-O {[%clk 0:02:51]} 8. d3 {[%clk 0:02:55]}  h6 {[%clk 0:02:51]} 9. Nbd2 {[%clk 0:02:54]}  Nbd7 {[%clk 0:02:51]} 10. Ne5 {[%clk 0:02:53]}  Nxe5 {[%clk 0:02:43]} 11. Bxe5 {[%clk 0:02:52]}  Nd7 {[%clk 0:02:44]} 12. Bb2 {[%clk 0:02:51]}  Bf6 {[%clk 0:02:44]} 13. Qc2 {[%clk 0:02:51]}  a5 {[%clk 0:02:38]} 14. e4 {[%clk 0:02:51]}  Bh7 {[%clk 0:02:38]} 15. f4 {[%clk 0:02:43]}  Nc5 {[%clk 0:02:28]} 16. Bxf6 {[%clk 0:02:33]}  Qxf6 {[%clk 0:02:27]} 17. cxd5 {[%clk 0:02:34]}  Qd4+ {[%clk 0:02:24]} 18. Kh1 {[%clk 0:02:34]}  Nxd3 {[%clk 0:01:38]} 19. Nf3 {[%clk 0:02:24]}  Qxe4 {[%clk 0:01:38]} 20. Ne5 {[%clk 0:02:12]}  Qe3 {[%clk 0:00:37]} 21. Rf3 {[%clk 0:02:07]}  Qd4 {[%clk 0:00:26]} 22. Rd1 {[%clk 0:01:55]}  Nf2+ {[%clk 0:00:26]} 23. Rxf2 {[%clk 0:01:55]}  Qb6 {[%clk 0:00:03]} 24. Qd2 {[%clk 0:01:35]}  Rfd8 {[%clk 0:00:04]} 25. d6 {[%clk 0:01:28]}  a4 {[%clk 0:00:02]} 26. Nc4 {[%clk 0:01:26]}  Qc5 {[%clk 0:00:02]} 27. Qd4 {[%clk 0:01:13]}  Qb4 {[%clk 0:00:02]} 28. Nb6 {[%clk 0:00:55]}  Qxd4 {[%clk 0:00:02]} 29. Rxd4 {[%clk 0:00:56]}  axb3 {[%clk 0:00:02]} 30. Nxa8 {[%clk 0:00:53]}  Rxa8 {[%clk 0:00:01]} 31. d7 {[%clk 0:00:50]} 1-0


[Site "https://www.chess.com"]

[Event "Titled Tuesday Blitz March 15 Late 2022"]
[White "Bluebaum, Matthias"]
[Black "Drozdowski, Kacper"]
[WhiteFideId "24651516"]
[BlackFideId "1136720"]
[WhiteElo "2550"]
[BlackElo "2507"]
[Result "1/2-1/2"]
[Round "08"]
[TimeControl "180+1"]
[Date "2022.03.15"]
[WhiteClock "0:00:04"]
[BlackClock "0:00:17"]

1. b3 {[%clk 0:03:00]}  e5 {[%clk 0:02:59]} 2. Bb2 {[%clk 0:02:59]}  Nc6 {[%clk 0:03:00]} 3. e3 {[%clk 0:03:00]}  Nf6 {[%clk 0:03:00]} 4. Nf3 {[%clk 0:03:01]}  e4 {[%clk 0:02:59]} 5. Nd4 {[%clk 0:03:01]}  Nxd4 {[%clk 0:02:55]} 6. Bxd4 {[%clk 0:03:02]}  c6 {[%clk 0:02:52]} 7. c4 {[%clk 0:03:01]}  d5 {[%clk 0:02:41]} 8. Nc3 {[%clk 0:03:01]}  Be7 {[%clk 0:02:36]} 9. cxd5 {[%clk 0:03:00]}  cxd5 {[%clk 0:02:37]} 10. Bb5+ {[%clk 0:02:58]}  Bd7 {[%clk 0:02:35]} 11. Bxd7+ {[%clk 0:02:58]}  Qxd7 {[%clk 0:02:36]} 12. d3 {[%clk 0:02:59]}  Qf5 {[%clk 0:02:23]} 13. dxe4 {[%clk 0:02:53]}  dxe4 {[%clk 0:02:24]} 14. O-O {[%clk 0:02:50]}  O-O {[%clk 0:02:22]} 15. Qe2 {[%clk 0:02:32]}  a6 {[%clk 0:02:19]} 16. Rad1 {[%clk 0:02:26]}  Rac8 {[%clk 0:02:19]} 17. h3 {[%clk 0:02:11]}  h6 {[%clk 0:02:16]} 18. Bxf6 {[%clk 0:02:03]}  Bxf6 {[%clk 0:02:15]} 19. Nd5 {[%clk 0:02:03]}  Rfd8 {[%clk 0:02:10]} 20. Qg4 {[%clk 0:02:02]}  Qxg4 {[%clk 0:02:04]} 21. Nxf6+ {[%clk 0:02:00]}  gxf6 {[%clk 0:02:05]} 22. hxg4 {[%clk 0:02:01]}  Kg7 {[%clk 0:02:03]} 23. Kh2 {[%clk 0:01:56]}  Rxd1 {[%clk 0:02:00]} 24. Rxd1 {[%clk 0:01:57]}  Rc2 {[%clk 0:02:01]} 25. Kg3 {[%clk 0:01:49]}  Rxa2 {[%clk 0:01:59]} 26. Rd4 {[%clk 0:01:50]}  a5 {[%clk 0:01:51]} 27. b4 {[%clk 0:01:32]}  b5 {[%clk 0:01:28]} 28. bxa5 {[%clk 0:01:26]}  Rxa5 {[%clk 0:01:29]} 29. Rxe4 {[%clk 0:01:16]}  Ra8 {[%clk 0:01:24]} 30. Rb4 {[%clk 0:00:53]}  Rb8 {[%clk 0:01:23]} 31. f4 {[%clk 0:00:41]}  Kg6 {[%clk 0:01:21]} 32. Kf3 {[%clk 0:00:35]}  f5 {[%clk 0:01:14]} 33. gxf5+ {[%clk 0:00:36]}  Kxf5 {[%clk 0:01:15]} 34. g4+ {[%clk 0:00:37]}  Ke6 {[%clk 0:01:11]} 35. Ke4 {[%clk 0:00:37]}  Rb7 {[%clk 0:00:53]} 36. Rb1 {[%clk 0:00:26]}  b4 {[%clk 0:00:44]} 37. Rb3 {[%clk 0:00:25]}  f5+ {[%clk 0:00:31]} 38. gxf5+ {[%clk 0:00:25]}  Kf6 {[%clk 0:00:31]} 39. Kf3 {[%clk 0:00:22]}  Kxf5 {[%clk 0:00:30]} 40. e4+ {[%clk 0:00:22]}  Kf6 {[%clk 0:00:27]} 41. Ke3 {[%clk 0:00:21]}  h5 {[%clk 0:00:26]} 42. Kd4 {[%clk 0:00:21]}  h4 {[%clk 0:00:26]} 43. Kc4 {[%clk 0:00:21]}  Rb8 {[%clk 0:00:25]} 44. Kd4 {[%clk 0:00:13]}  Ke6 {[%clk 0:00:23]} 45. Kc4 {[%clk 0:00:11]}  Kf6 {[%clk 0:00:23]} 46. Kd5 {[%clk 0:00:11]}  Rb5+ {[%clk 0:00:20]} 47. Kc6 {[%clk 0:00:10]}  Rb8 {[%clk 0:00:20]} 48. Kc5 {[%clk 0:00:05]}  Rc8+ {[%clk 0:00:18]} 49. Kd4 {[%clk 0:00:05]}  Rd8+ {[%clk 0:00:18]} 50. Kc4 {[%clk 0:00:05]}  Rc8+ {[%clk 0:00:16]} 51. Kd5 {[%clk 0:00:06]}  Rd8+ {[%clk 0:00:16]} 52. Kc5 {[%clk 0:00:06]}  Rc8+ {[%clk 0:00:17]} 53. Kd5 {[%clk 0:00:03]}  Rd8+ {[%clk 0:00:17]} 54. Kc5 {[%clk 0:00:04]}  Rc8+ {[%clk 0:00:17]} 1/2-1/2


[Site "https://www.chess.com"]

[Event "Titled Tuesday Blitz March 15 Late 2022"]
[White "Borodavkin, Anatoly"]
[Black "Koutlas, Nikolaos"]
[WhiteFideId "14150662"]
[BlackFideId "25827138"]
[WhiteElo "1845"]
[BlackElo "1610"]
[Result "1/2-1/2"]
[Round "08"]
[TimeControl "180+1"]
[Date "2022.03.16"]
[WhiteClock "0:00:05"]
[BlackClock "0:00:06"]

1. e4 {[%clk 0:03:00]}  e6 {[%clk 0:02:56]} 2. d4 {[%clk 0:03:00]}  d5 {[%clk 0:02:57]} 3. Nc3 {[%clk 0:03:00]}  dxe4 {[%clk 0:02:55]} 4. Nxe4 {[%clk 0:03:00]}  Be7 {[%clk 0:02:56]} 5. Nf3 {[%clk 0:02:59]}  Nf6 {[%clk 0:02:56]} 6. Nxf6+ {[%clk 0:02:58]}  Bxf6 {[%clk 0:02:57]} 7. c3 {[%clk 0:02:59]}  O-O {[%clk 0:02:57]} 8. Bd3 {[%clk 0:02:59]}  b6 {[%clk 0:02:57]} 9. Be4 {[%clk 0:02:50]}  c6 {[%clk 0:02:57]} 10. O-O {[%clk 0:02:50]}  Qc7 {[%clk 0:02:54]} 11. Be3 {[%clk 0:02:46]}  Bb7 {[%clk 0:02:53]} 12. Qd2 {[%clk 0:02:38]}  Nd7 {[%clk 0:02:52]} 13. Bf4 {[%clk 0:02:32]}  e5 {[%clk 0:02:49]} 14. dxe5 {[%clk 0:02:31]}  Nxe5 {[%clk 0:02:49]} 15. Rfe1 {[%clk 0:02:10]}  Rad8 {[%clk 0:02:42]} 16. Qe3 {[%clk 0:02:07]}  Nxf3+ {[%clk 0:02:33]} 17. Qxf3 {[%clk 0:02:03]}  Qc8 {[%clk 0:02:31]} 18. h3 {[%clk 0:01:41]}  Rfe8 {[%clk 0:02:29]} 19. Re3 {[%clk 0:01:31]}  Re6 {[%clk 0:02:23]} 20. Rae1 {[%clk 0:01:25]}  g6 {[%clk 0:02:15]} 21. Bc2 {[%clk 0:01:09]}  c5 {[%clk 0:02:11]} 22. Qg3 {[%clk 0:01:07]}  Rxe3 {[%clk 0:02:06]} 23. Rxe3 {[%clk 0:01:05]}  Kg7 {[%clk 0:01:59]} 24. Re1 {[%clk 0:00:57]}  Qd7 {[%clk 0:01:46]} 25. Be5 {[%clk 0:00:48]}  Qe6 {[%clk 0:01:41]} 26. Bxf6+ {[%clk 0:00:38]}  Qxf6 {[%clk 0:01:40]} 27. Qe3 {[%clk 0:00:25]}  Bc6 {[%clk 0:01:29]} 28. Bb3 {[%clk 0:00:21]}  a5 {[%clk 0:01:18]} 29. Qe7 {[%clk 0:00:21]}  Re8 {[%clk 0:01:16]} 30. Qxf6+ {[%clk 0:00:20]}  Kxf6 {[%clk 0:01:17]} 31. Rxe8 {[%clk 0:00:20]}  Bxe8 {[%clk 0:01:17]} 32. Kf1 {[%clk 0:00:20]}  Ke5 {[%clk 0:01:15]} 33. Ke2 {[%clk 0:00:20]}  f6 {[%clk 0:01:12]} 34. Ke3 {[%clk 0:00:20]}  g5 {[%clk 0:01:12]} 35. g3 {[%clk 0:00:19]}  a4 {[%clk 0:01:08]} 36. Bc2 {[%clk 0:00:18]}  h6 {[%clk 0:01:06]} 37. f4+ {[%clk 0:00:17]}  Kd6 {[%clk 0:01:05]} 38. fxg5 {[%clk 0:00:15]}  fxg5 {[%clk 0:01:05]} 39. Bf5 {[%clk 0:00:15]}  Ke5 {[%clk 0:01:05]} 40. Bd3 {[%clk 0:00:12]}  Bd7 {[%clk 0:01:01]} 41. h4 {[%clk 0:00:12]}  gxh4 {[%clk 0:00:58]} 42. gxh4 {[%clk 0:00:13]}  Bf5 {[%clk 0:00:56]} 43. Bb5 {[%clk 0:00:11]}  Bb1 {[%clk 0:00:48]} 44. Bxa4 {[%clk 0:00:10]}  Bxa2 {[%clk 0:00:48]} 45. Bd7 {[%clk 0:00:10]}  Bb1 {[%clk 0:00:45]} 46. Bc6 {[%clk 0:00:09]}  Bc2 {[%clk 0:00:42]} 47. Bd7 {[%clk 0:00:09]}  Kd5 {[%clk 0:00:40]} 48. Kd2 {[%clk 0:00:08]}  Bg6 {[%clk 0:00:39]} 49. Ke3 {[%clk 0:00:08]}  Bf7 {[%clk 0:00:34]} 50. Bb5 {[%clk 0:00:08]}  Ke5 {[%clk 0:00:33]} 51. Bd3 {[%clk 0:00:08]}  Be8 {[%clk 0:00:29]} 52. Bc4 {[%clk 0:00:07]}  b5 {[%clk 0:00:28]} 53. Bd3 {[%clk 0:00:07]}  b4 {[%clk 0:00:28]} 54. cxb4 {[%clk 0:00:06]}  cxb4 {[%clk 0:00:29]} 55. Bh7 {[%clk 0:00:05]}  Bb5 {[%clk 0:00:28]} 56. Bg8 {[%clk 0:00:04]}  Kf5 {[%clk 0:00:25]} 57. Kd4 {[%clk 0:00:04]}  Kg4 {[%clk 0:00:20]} 58. Kc5 {[%clk 0:00:04]}  Be2 {[%clk 0:00:19]} 59. Kxb4 {[%clk 0:00:04]}  Kxh4 {[%clk 0:00:20]} 60. Kc5 {[%clk 0:00:04]}  Kg3 {[%clk 0:00:20]} 61. b4 {[%clk 0:00:04]}  h5 {[%clk 0:00:20]} 62. b5 {[%clk 0:00:05]}  h4 {[%clk 0:00:07]} 63. b6 {[%clk 0:00:05]}  Ba6 {[%clk 0:00:06]} 64. Be6 {[%clk 0:00:04]}  h3 {[%clk 0:00:05]} 65. Bxh3 {[%clk 0:00:04]}  Kxh3 {[%clk 0:00:06]} 66. Kc6 {[%clk 0:00:04]}  Kg3 {[%clk 0:00:06]} 67. b7 {[%clk 0:00:05]}  Bxb7+ {[%clk 0:00:06]} 1/2-1/2


[Site "https://www.chess.com"]

[Event "Titled Tuesday Blitz March 15 Late 2022"]
[White "Cagara, Paulina"]
[Black "Winkels, Marcel"]
[WhiteFideId "1124870"]
[BlackFideId "1003887"]
[WhiteElo "1780"]
[BlackElo "1900"]
[Result "0-1"]
[Round "08"]
[TimeControl "180+1"]
[Date "2022.03.16"]
[WhiteClock "0:00:36"]
[BlackClock "0:00:17"]

1. e4 {[%clk 0:02:56]}  g6 {[%clk 0:02:59]} 2. d4 {[%clk 0:02:56]}  Bg7 {[%clk 0:03:00]} 3. Be3 {[%clk 0:02:55]}  c6 {[%clk 0:02:58]} 4. Nc3 {[%clk 0:02:54]}  d5 {[%clk 0:02:58]} 5. e5 {[%clk 0:02:54]}  h5 {[%clk 0:02:56]} 6. Qd2 {[%clk 0:02:52]}  Nh6 {[%clk 0:02:55]} 7. h3 {[%clk 0:02:47]}  Nf5 {[%clk 0:02:53]} 8. Bg5 {[%clk 0:02:47]}  h4 {[%clk 0:02:43]} 9. O-O-O {[%clk 0:02:43]}  b5 {[%clk 0:02:35]} 10. g4 {[%clk 0:02:28]}  hxg3 {[%clk 0:02:33]} 11. fxg3 {[%clk 0:02:28]}  Nxg3 {[%clk 0:02:25]} 12. Rh2 {[%clk 0:02:25]}  b4 {[%clk 0:02:20]} 13. Nce2 {[%clk 0:02:20]}  Ne4 {[%clk 0:02:19]} 14. Qxb4 {[%clk 0:02:18]}  Nxg5 {[%clk 0:02:16]} 15. Nf4 {[%clk 0:02:14]}  e6 {[%clk 0:02:12]} 16. Bd3 {[%clk 0:02:04]}  Ne4 {[%clk 0:02:08]} 17. Bxe4 {[%clk 0:02:01]}  dxe4 {[%clk 0:02:07]} 18. Nge2 {[%clk 0:01:49]}  Bf8 {[%clk 0:02:07]} 19. Qa4 {[%clk 0:01:45]}  Be7 {[%clk 0:02:00]} 20. d5 {[%clk 0:01:43]}  exd5 {[%clk 0:01:53]} 21. Nxd5 {[%clk 0:01:33]}  Bg5+ {[%clk 0:01:34]} 22. Kb1 {[%clk 0:01:32]}  Nd7 {[%clk 0:01:24]} 23. Qxc6 {[%clk 0:01:07]}  Rb8 {[%clk 0:01:23]} 24. e6 {[%clk 0:01:04]}  O-O {[%clk 0:01:06]} 25. exf7+ {[%clk 0:01:01]}  Kg7 {[%clk 0:01:00]} 26. Rg2 {[%clk 0:00:55]}  Bh6 {[%clk 0:00:49]} 27. Nd4 {[%clk 0:00:50]}  Ne5 {[%clk 0:00:47]} 28. Ne6+ {[%clk 0:00:41]}  Bxe6 {[%clk 0:00:45]} 29. Qxe6 {[%clk 0:00:41]}  Nxf7 {[%clk 0:00:22]} 30. Qxg6+ {[%clk 0:00:39]}  Kh8 {[%clk 0:00:22]} 31. Nf6 {[%clk 0:00:36]}  Qxd1# {[%clk 0:00:17]} 0-1


[Site "https://www.chess.com"]

[Event "Titled Tuesday Blitz March 15 Late 2022"]
[White "Dauner, Benedikt"]
[Black "Zhou, Qiyu"]
[WhiteFideId "16225899"]
[BlackFideId "505161"]
[WhiteElo "2230"]
[BlackElo "1925"]
[Result "1-0"]
[Round "08"]
[TimeControl "180+1"]
[Date "2022.03.16"]
[WhiteClock "0:02:30"]
[BlackClock "0:00:24"]

1. d4 {[%clk 0:03:00]}  Nf6 {[%clk 0:02:59]} 2. Nf3 {[%clk 0:03:00]}  d5 {[%clk 0:02:59]} 3. Bg5 {[%clk 0:02:59]}  e6 {[%clk 0:02:57]} 4. Nbd2 {[%clk 0:02:59]}  Be7 {[%clk 0:02:54]} 5. e3 {[%clk 0:02:59]}  h6 {[%clk 0:02:53]} 6. Bh4 {[%clk 0:02:58]}  O-O {[%clk 0:02:53]} 7. Bd3 {[%clk 0:02:58]}  c5 {[%clk 0:02:51]} 8. c3 {[%clk 0:02:58]}  Nc6 {[%clk 0:02:49]} 9. Qe2 {[%clk 0:02:57]}  cxd4 {[%clk 0:02:41]} 10. exd4 {[%clk 0:02:56]}  Nh5 {[%clk 0:02:33]} 11. Bxe7 {[%clk 0:02:54]}  Qxe7 {[%clk 0:02:32]} 12. g3 {[%clk 0:02:53]}  a6 {[%clk 0:02:12]} 13. Ne5 {[%clk 0:02:53]}  Nxe5 {[%clk 0:02:11]} 14. dxe5 {[%clk 0:02:53]}  g6 {[%clk 0:02:10]} 15. f4 {[%clk 0:02:46]}  Ng7 {[%clk 0:02:07]} 16. Nf3 {[%clk 0:02:44]}  Qc5 {[%clk 0:02:01]} 17. Nd4 {[%clk 0:02:43]}  b5 {[%clk 0:02:00]} 18. a3 {[%clk 0:02:42]}  Bd7 {[%clk 0:01:57]} 19. h4 {[%clk 0:02:37]}  a5 {[%clk 0:01:28]} 20. h5 {[%clk 0:02:36]}  gxh5 {[%clk 0:01:13]} 21. Rxh5 {[%clk 0:02:33]}  Nxh5 {[%clk 0:00:36]} 22. Qxh5 {[%clk 0:02:34]}  Kg7 {[%clk 0:00:29]} 23. Qg4+ {[%clk 0:02:28]}  Kh8 {[%clk 0:00:28]} 24. Qh4 {[%clk 0:02:29]}  Kg7 {[%clk 0:00:27]} 25. Qf6+ {[%clk 0:02:29]}  Kg8 {[%clk 0:00:27]} 26. Qxh6 {[%clk 0:02:30]}  Rfc8 {[%clk 0:00:24]} 27. Bh7+ {[%clk 0:02:29]}  Kh8 {[%clk 0:00:24]} 28. Bg6+ {[%clk 0:02:30]} 1-0


[Site "https://www.chess.com"]

[Event "Titled Tuesday Blitz March 15 Late 2022"]
[White "Eames, Robert S"]
[Black "Vine, Elzbieta"]
[WhiteFideId "408743"]
[BlackFideId "1119320"]
[WhiteElo "2105"]
[BlackElo "1841"]
[Result "1-0"]
[Round "08"]
[TimeControl "180+1"]
[Date "2022.03.16"]
[WhiteClock "0:00:05"]
[BlackClock "0:00:01"]

1. e4 {[%clk 0:02:56]}  c5 {[%clk 0:02:58]} 2. Nc3 {[%clk 0:02:54]}  a6 {[%clk 0:02:55]} 3. g3 {[%clk 0:02:50]}  Nc6 {[%clk 0:02:50]} 4. Bg2 {[%clk 0:02:49]}  e6 {[%clk 0:02:46]} 5. d3 {[%clk 0:02:48]}  b5 {[%clk 0:02:45]} 6. Nh3 {[%clk 0:02:47]}  b4 {[%clk 0:02:44]} 7. Ne2 {[%clk 0:02:45]}  Bb7 {[%clk 0:02:42]} 8. O-O {[%clk 0:02:44]}  Nf6 {[%clk 0:02:40]} 9. f4 {[%clk 0:02:37]}  d5 {[%clk 0:02:35]} 10. e5 {[%clk 0:02:31]}  Ng4 {[%clk 0:02:20]} 11. Bf3 {[%clk 0:02:29]}  h5 {[%clk 0:02:01]} 12. Ng5 {[%clk 0:02:14]}  Qd7 {[%clk 0:01:54]} 13. h3 {[%clk 0:02:13]}  f6 {[%clk 0:01:52]} 14. hxg4 {[%clk 0:02:10]}  fxg5 {[%clk 0:01:45]} 15. gxh5 {[%clk 0:02:05]}  gxf4 {[%clk 0:01:41]} 16. Bxf4 {[%clk 0:02:03]}  O-O-O {[%clk 0:01:36]} 17. a3 {[%clk 0:02:01]}  Be7 {[%clk 0:01:23]} 18. axb4 {[%clk 0:01:58]}  cxb4 {[%clk 0:01:20]} 19. c3 {[%clk 0:01:52]}  g5 {[%clk 0:01:07]} 20. Be3 {[%clk 0:01:23]}  Nxe5 {[%clk 0:01:03]} 21. Bd4 {[%clk 0:01:21]}  Nxf3+ {[%clk 0:01:00]} 22. Rxf3 {[%clk 0:01:20]}  Rxh5 {[%clk 0:00:59]} 23. cxb4 {[%clk 0:01:16]}  Bxb4 {[%clk 0:00:48]} 24. Qb3 {[%clk 0:01:11]}  Qe7 {[%clk 0:00:33]} 25. Bf6 {[%clk 0:00:49]}  Qc5+ {[%clk 0:00:26]} 26. d4 {[%clk 0:00:48]}  Qb5 {[%clk 0:00:20]} 27. Rc1+ {[%clk 0:00:43]}  Bc6 {[%clk 0:00:16]} 28. Rxc6+ {[%clk 0:00:35]}  Qxc6 {[%clk 0:00:14]} 29. Bxd8 {[%clk 0:00:32]}  Qb5 {[%clk 0:00:11]} 30. Nc3 {[%clk 0:00:28]}  Bxc3 {[%clk 0:00:08]} 31. Qxc3+ {[%clk 0:00:16]}  Kxd8 {[%clk 0:00:07]} 32. Rf8+ {[%clk 0:00:14]}  Ke7 {[%clk 0:00:06]} 33. Qa3+ {[%clk 0:00:13]}  Kd7 {[%clk 0:00:04]} 34. Rf7+ {[%clk 0:00:12]}  Kc6 {[%clk 0:00:03]} 35. Qc3+ {[%clk 0:00:06]}  Qc4 {[%clk 0:00:02]} 36. Qxc4+ {[%clk 0:00:05]}  dxc4 {[%clk 0:00:01]} 37. Re7 {[%clk 0:00:05]} 1-0


[Site "https://www.chess.com"]

[Event "Titled Tuesday Blitz March 15 Late 2022"]
[White "Ezat, Mohamed"]
[Black "Martin Barcelo, Carles"]
[WhiteFideId "10600906"]
[BlackFideId "24561444"]
[WhiteElo "2386"]
[BlackElo "1875"]
[Result "0-1"]
[Round "08"]
[TimeControl "180+1"]
[Date "2022.03.16"]
[WhiteClock "0:00:12"]
[BlackClock "0:00:03"]

1. e4 {[%clk 0:02:56]}  e6 {[%clk 0:02:54]} 2. d4 {[%clk 0:02:51]}  d5 {[%clk 0:02:55]} 3. Nc3 {[%clk 0:02:48]}  dxe4 {[%clk 0:02:52]} 4. Nxe4 {[%clk 0:02:45]}  Nd7 {[%clk 0:02:53]} 5. Nf3 {[%clk 0:02:41]}  Ngf6 {[%clk 0:02:50]} 6. Ng3 {[%clk 0:02:38]}  Be7 {[%clk 0:02:47]} 7. Bd3 {[%clk 0:02:35]}  O-O {[%clk 0:02:46]} 8. Qe2 {[%clk 0:02:35]}  c5 {[%clk 0:02:45]} 9. Bg5 {[%clk 0:02:28]}  cxd4 {[%clk 0:02:37]} 10. O-O-O {[%clk 0:02:28]}  Qa5 {[%clk 0:02:37]} 11. Kb1 {[%clk 0:02:26]}  b6 {[%clk 0:02:17]} 12. Nf5 {[%clk 0:01:52]}  Bc5 {[%clk 0:02:01]} 13. Bxf6 {[%clk 0:01:23]}  Nxf6 {[%clk 0:01:56]} 14. N5xd4 {[%clk 0:01:22]}  Bb7 {[%clk 0:01:48]} 15. Nb3 {[%clk 0:01:21]}  Qa4 {[%clk 0:01:38]} 16. Nxc5 {[%clk 0:01:18]}  bxc5 {[%clk 0:01:39]} 17. Nd2 {[%clk 0:01:10]}  Rab8 {[%clk 0:01:36]} 18. b3 {[%clk 0:01:06]}  Qb4 {[%clk 0:01:34]} 19. Kb2 {[%clk 0:01:02]}  Nd5 {[%clk 0:01:29]} 20. Ne4 {[%clk 0:00:56]}  f5 {[%clk 0:00:50]} 21. c3 {[%clk 0:00:53]}  Qa5 {[%clk 0:00:45]} 22. Nd6 {[%clk 0:00:43]}  Qxc3+ {[%clk 0:00:37]} 23. Kb1 {[%clk 0:00:43]}  Qf6 {[%clk 0:00:37]} 24. Rc1 {[%clk 0:00:38]}  Rfd8 {[%clk 0:00:22]} 25. Nxb7 {[%clk 0:00:33]}  Rxb7 {[%clk 0:00:22]} 26. Qb2 {[%clk 0:00:33]}  Qe7 {[%clk 0:00:09]} 27. Rhe1 {[%clk 0:00:28]}  Rdb8 {[%clk 0:00:09]} 28. Bc4 {[%clk 0:00:27]}  Qd6 {[%clk 0:00:08]} 29. Rcd1 {[%clk 0:00:25]}  a5 {[%clk 0:00:07]} 30. Rxe6 {[%clk 0:00:24]}  Nc3+ {[%clk 0:00:01]} 31. Qxc3 {[%clk 0:00:25]}  Qxd1+ {[%clk 0:00:02]} 32. Kb2 {[%clk 0:00:26]}  Kh8 {[%clk 0:00:01]} 33. Re1 {[%clk 0:00:17]}  Qd7 {[%clk 0:00:01]} 34. Qe3 {[%clk 0:00:14]}  a4 {[%clk 0:00:01]} 35. Kc2 {[%clk 0:00:13]}  axb3+ {[%clk 0:00:02]} 36. axb3 {[%clk 0:00:14]}  Ra8 {[%clk 0:00:02]} 37. Kb2 {[%clk 0:00:12]}  Rba7 {[%clk 0:00:02]} 38. Qxc5 {[%clk 0:00:12]}  Ra2+ {[%clk 0:00:03]} 39. Kc3 {[%clk 0:00:12]}  Qd2# {[%clk 0:00:03]} 0-1


[Site "https://www.chess.com"]

[Event "Titled Tuesday Blitz March 15 Late 2022"]
[White "Fedoseev, Vladimir"]
[Black "Moroni, Luca Jr"]
[WhiteFideId "24130737"]
[BlackFideId "865834"]
[WhiteElo "2726"]
[BlackElo "2573"]
[Result "1-0"]
[Round "08"]
[TimeControl "180+1"]
[Date "2022.03.15"]
[WhiteClock "0:00:31"]
[BlackClock "0:00:02"]

1. Nf3 {[%clk 0:02:55]}  d6 {[%clk 0:02:58]} 2. d4 {[%clk 0:02:54]}  g6 {[%clk 0:02:58]} 3. e4 {[%clk 0:02:54]}  Bg7 {[%clk 0:02:58]} 4. Bc4 {[%clk 0:02:54]}  Nf6 {[%clk 0:02:59]} 5. e5 {[%clk 0:02:53]}  dxe5 {[%clk 0:02:58]} 6. Nxe5 {[%clk 0:02:53]}  O-O {[%clk 0:02:56]} 7. O-O {[%clk 0:02:53]}  c5 {[%clk 0:02:54]} 8. dxc5 {[%clk 0:02:52]}  Qc7 {[%clk 0:02:55]} 9. Nd3 {[%clk 0:02:52]}  Bg4 {[%clk 0:02:48]} 10. Qe1 {[%clk 0:02:51]}  Nc6 {[%clk 0:02:41]} 11. Bf4 {[%clk 0:02:49]}  Qc8 {[%clk 0:02:03]} 12. Nc3 {[%clk 0:02:49]}  Rd8 {[%clk 0:01:51]} 13. h3 {[%clk 0:02:44]}  Bf5 {[%clk 0:01:50]} 14. Rd1 {[%clk 0:02:43]}  Nd4 {[%clk 0:01:35]} 15. Qxe7 {[%clk 0:02:40]}  Bxh3 {[%clk 0:01:29]} 16. Qxf7+ {[%clk 0:02:37]}  Kh8 {[%clk 0:01:29]} 17. Ne5 {[%clk 0:02:34]}  Rf8 {[%clk 0:01:02]} 18. Qe7 {[%clk 0:02:26]}  Nh5 {[%clk 0:00:53]} 19. Rxd4 {[%clk 0:01:44]}  Nxf4 {[%clk 0:00:38]} 20. gxh3 {[%clk 0:01:38]}  Qxh3 {[%clk 0:00:31]} 21. Rxf4 {[%clk 0:01:38]}  Rxf4 {[%clk 0:00:30]} 22. Be6 {[%clk 0:01:38]}  Qh5 {[%clk 0:00:20]} 23. Nf7+ {[%clk 0:01:27]}  Rxf7 {[%clk 0:00:20]} 24. Qxf7 {[%clk 0:01:27]}  Qg5+ {[%clk 0:00:19]} 25. Kh2 {[%clk 0:01:22]}  Qh4+ {[%clk 0:00:20]} 26. Bh3 {[%clk 0:01:18]}  Rf8 {[%clk 0:00:15]} 27. Qe6 {[%clk 0:01:10]}  Rxf2+ {[%clk 0:00:14]} 28. Rxf2 {[%clk 0:01:11]}  Qxf2+ {[%clk 0:00:15]} 29. Kh1 {[%clk 0:01:11]}  Bd4 {[%clk 0:00:14]} 30. Qc8+ {[%clk 0:00:56]}  Kg7 {[%clk 0:00:13]} 31. Qxb7+ {[%clk 0:00:56]}  Kh6 {[%clk 0:00:13]} 32. Qg2 {[%clk 0:00:55]}  Qe1+ {[%clk 0:00:04]} 33. Qf1 {[%clk 0:00:55]}  Qh4 {[%clk 0:00:03]} 34. c6 {[%clk 0:00:49]}  Be5 {[%clk 0:00:02]} 35. Qf8+ {[%clk 0:00:45]}  Bg7 {[%clk 0:00:01]} 36. Qf3 {[%clk 0:00:44]}  Be5 {[%clk 0:00:01]} 37. Kg2 {[%clk 0:00:41]}  Qe1 {[%clk 0:00:01]} 38. Ne2 {[%clk 0:00:39]}  Qd2 {[%clk 0:00:01]} 39. c3 {[%clk 0:00:38]}  Qg5+ {[%clk 0:00:01]} 40. Kf1 {[%clk 0:00:35]}  Qd2 {[%clk 0:00:02]} 41. b4 {[%clk 0:00:33]}  Qd1+ {[%clk 0:00:01]} 42. Kf2 {[%clk 0:00:33]}  Qd6 {[%clk 0:00:02]} 43. Qe3+ {[%clk 0:00:30]}  Kg7 {[%clk 0:00:03]} 44. Nd4 {[%clk 0:00:30]}  Qf6+ {[%clk 0:00:03]} 45. Ke2 {[%clk 0:00:29]}  Qd6 {[%clk 0:00:02]} 46. Bg2 {[%clk 0:00:30]}  Qf6 {[%clk 0:00:02]} 47. Bf3 {[%clk 0:00:29]}  h5 {[%clk 0:00:02]} 48. c7 {[%clk 0:00:29]}  Bxc7 {[%clk 0:00:02]} 49. Ne6+ {[%clk 0:00:29]}  Kh7 {[%clk 0:00:02]} 50. Nxc7 {[%clk 0:00:30]}  Qf7 {[%clk 0:00:02]} 51. Nd5 {[%clk 0:00:30]}  h4 {[%clk 0:00:02]} 52. Qg5 {[%clk 0:00:30]}  Kg7 {[%clk 0:00:01]} 53. Qxh4 {[%clk 0:00:30]}  Qe6+ {[%clk 0:00:02]} 54. Kf2 {[%clk 0:00:31]}  Qf5 {[%clk 0:00:02]} 55. Qd4+ {[%clk 0:00:31]} 1-0


[Site "https://www.chess.com"]